fUSD/lending_fUSD_20240319
["ID","MTS","AMOUNT","RATE_DAILY","PERIOD"]
[319605318,1710885187973,-5676.82,0.0003452,5]
[319605319,1710885187983,-500.0,0.0003452,5]
[319605320,1710885187992,-2336.1,0.0003452,5]
[319605321,1710885188002,-500.0,0.0003452,5]
[319605322,1710885188011,-2928.09,0.0003452,5]
[319605323,1710885188020,-784.81,0.0003452,5]
[319605324,1710885188029,-958.78,0.0003452,5]
[319605325,1710885188039,-12462.52,0.0003452,5]
[319605326,1710885188049,-742.85,0.0003452,5]
[319605327,1710885188058,-5305.03,0.0003452,5]
[319605328,1710885188068,-500.0,0.0003452,5]
[319605329,1710885188077,-3248.64,0.0003452,5]
[319605330,1710885188087,-8000.71,0.0003452,5]
[319605331,1710885188097,-7424.85,0.0003452,5]
[319605332,1710885188107,-6273.21,0.0003452,5]
[319605333,1710885188117,-9028.78,0.0003452,5]
[319605334,1710885188126,-7152.27,0.0003452,5]
[319605335,1710885188136,-603.25,0.0003452,5]
[319605336,1710885188147,-920.58,0.0003452,5]
[319605337,1710885188157,-862.02,0.0003452,5]
[319605338,1710885188166,-11402.88,0.0003452,5]
[319605339,1710885188177,-5180.59,0.0003452,5]
[319605340,1710885188187,-1058.28,0.0003452,5]
[319605341,1710885188197,-6676.62,0.0003452,5]
[319605342,1710885188207,-50748.97,0.0003452,5]
[319605343,1710885188217,-12563.76,0.0003452,5]
[319605344,1710885188226,-4392.06,0.0003452,5]
[319605345,1710885188236,-311.8,0.0003452,5]
[319605346,1710885188245,-947.45,0.0003452,5]
[319605347,1710885188255,-994.47,0.0003452,5]
[319605348,1710885188264,-6289.47,0.0003452,5]
[319605349,1710885188273,-1127.56,0.0003452,5]
[319605350,1710885188283,-500.0,0.0003452,5]
[319605351,1710885188293,-1554.32,0.0003452,5]
[319605352,1710885188303,-1563.9,0.0003452,5]
[319605353,1710885188313,-2538.59,0.0003452,5]
[319605354,1710885188322,-9279.39,0.0003452,5]
[319605355,1710885188331,-2973.35,0.0003452,5]
[319605356,1710885188340,-1071.73,0.0003452,5]
[319605357,1710885188349,-1557.91,0.0003452,5]
[319605358,1710885188359,-586.74138954,0.0003452,5]
[319605359,1710885188368,-921.84,0.0003452,5]
[319605360,1710885188377,-1497.67,0.0003452,5]
[319605361,1710885188387,-5460.3,0.0003452,5]
[319605362,1710885188396,-549.68,0.0003452,5]
[319605363,1710885188406,-500.0,0.0003452,5]
[319605364,1710885188416,-500.0,0.0003452,5]
[319605365,1710885188426,-866.95,0.0003452,5]
[319605366,1710885188435,-23885.26,0.0003452,5]
[319605367,1710885188445,-34338.3,0.0003452,5]
[319605368,1710885188454,-2241.19,0.0003452,5]
[319605369,1710885188464,-6038.59,0.0003452,5]
[319605370,1710885188474,-870.15,0.0003452,5]
[319605371,1710885188485,-1003.35,0.0003452,5]
[319605372,1710885188496,-500.0,0.0003452,5]
[319605373,1710885188505,-615.59,0.0003452,5]
[319605374,1710885188514,-5507.6,0.0003452,5]
[319605375,1710885188523,-5378.59,0.0003452,5]
[319605376,1710885188534,-500.0,0.0003452,5]
[319605377,1710885188544,-681.39,0.0003452,5]
[319605378,1710885188554,-3623.08,0.0003452,5]
[319605379,1710885188564,-659.74,0.0003452,5]
[319605380,1710885188574,-500.0,0.0003452,5]
[319605381,1710885188585,-1648.34,0.0003452,5]
[319605382,1710885188595,-7204.29,0.0003452,5]
[319605383,1710885188605,-976.18,0.0003452,5]
[319605384,1710885188615,-1912.73,0.0003452,5]
[319605385,1710885188625,-3082.4,0.0003452,5]
[319605386,1710885188636,-2522.27,0.0003452,5]
[319605387,1710885188645,-6424.1,0.0003452,5]
[319605388,1710885188656,-1570.96,0.0003452,5]
[319605389,1710885188666,-5688.06,0.0003452,5]
[319605390,1710885188676,-2703.38,0.0003452,5]
[319605391,1710885188687,-1409.47,0.0003452,5]
[319605392,1710885188696,-10351.23,0.0003452,5]
[319605393,1710885188705,-373.228337,0.0003452,5]
[319605394,1710885188715,-723.42,0.0003452,5]
[319605395,1710885188724,-19207.21,0.0003452,5]
[319605396,1710885188735,-3910.17,0.0003452,5]
[319605397,1710885188745,-500.0,0.0003452,5]
[319605398,1710885188755,-3159.85,0.0003452,5]
[319605399,1710885188765,-989.66,0.0003452,5]
[319605400,1710885188774,-1575.99,0.0003452,5]
[319605401,1710885188784,-2518.49,0.0003452,5]
[319605402,1710885188794,-602.98,0.0003452,5]
[319605403,1710885188804,-2902.62,0.0003452,5]
[319605404,1710885188813,-1081.46,0.0003452,5]
[319605405,1710885188823,-996.99,0.0003452,5]
[319605406,1710885188833,-11316.17,0.0003452,5]
[319605407,1710885188842,-722.94,0.0003452,5]
[319605408,1710885188852,-21059.27,0.0003452,5]
[319605409,1710885188862,-1144.28,0.0003452,5]
[319605410,1710885188872,-3248.34,0.0003452,5]
[319605411,1710885188882,-500.0,0.0003452,5]
[319605412,1710885188892,-592.77,0.0003452,5]
[319605413,1710885188902,-611.45,0.0003452,5]
[319605414,1710885188911,-500.0,0.0003452,5]
[319605415,1710885188921,-1214.02,0.0003452,5]
[319605416,1710885188931,-5044.94,0.0003452,5]
[319605417,1710885188941,-500.0,0.0003452,5]
[319605418,1710885188951,-856.7,0.0003452,5]
[319605419,1710885188963,-6225.21,0.0003452,5]
[319605420,1710885188972,-608.72,0.0003452,5]
[319605421,1710885188983,-1511.11,0.0003452,5]
[319605422,1710885188996,-1279.36,0.0003452,5]
[319605423,1710885189006,-8737.55,0.0003452,5]
[319605424,1710885189015,-11752.03,0.0003452,5]
[319605425,1710885189024,-4482.5,0.0003452,5]
[319605426,1710885189034,-1788.46,0.0003452,5]
[319605427,1710885189043,-5316.22,0.0003452,5]
[319605428,1710885189052,-1321.67,0.0003452,5]
[319605429,1710885189062,-1177.76,0.0003452,5]
[319605430,1710885189071,-518.08,0.0003452,5]
[319605431,1710885189080,-505.75,0.0003452,5]
[319605432,1710885189090,-2886.03,0.0003452,5]
[319605433,1710885189099,-1429.54,0.0003452,5]
[319605434,1710885189109,-500.0,0.0003452,5]
[319605435,1710885189119,-3473.42,0.0003452,5]
[319605436,1710885189128,-20562.17,0.0003452,5]
[319605437,1710885189137,-22991.35,0.0003452,5]
[319605438,1710885189147,-4026.93,0.0003452,5]
[319605439,1710885189156,-546.20299949,0.0003452,5]
[319605440,1710885189166,-805.12,0.0003452,5]
[319605441,1710885189177,-981.11,0.0003452,5]
[319605442,1710885189187,-877.4,0.0003452,5]
[319605443,1710885189197,-1121.88,0.0003452,5]
[319605444,1710885189306,-836.09,0.0003452,5]
[319605445,1710885189316,-12965.17,0.0003452,5]
[319605446,1710885189326,-4640.74,0.0003452,5]
[319605447,1710885189339,-8047.18,0.0003452,5]
[319605448,1710885189349,-6661.58,0.0003452,5]
[319605449,1710885189359,-720.32,0.0003452,5]
[319605450,1710885189369,-500.0,0.0003452,5]
[319605451,1710885189379,-3306.12,0.0003452,5]
[319605452,1710885189389,-1406.25,0.0003452,5]
[319605453,1710885189399,-603.58,0.0003452,5]
[319605454,1710885189409,-500.0,0.0003452,5]
[319605455,1710885189419,-1438.11,0.0003452,5]
[319605456,1710885189430,-6333.98,0.0003452,5]
[319605457,1710885189439,-2692.37,0.0003452,5]
[319605458,1710885189450,-26854.72,0.0003452,5]
[319605459,1710885189459,-614.48,0.0003452,5]
[319605460,1710885189470,-2847.31,0.0003452,5]
[319605461,1710885189483,-1298.71,0.0003452,5]
[319605462,1710885189493,-500.0,0.0003452,5]
[319605463,1710885189502,-1953.31,0.0003452,5]
[319605464,1710885189513,-521.8,0.0003452,5]
[319605465,1710885189523,-972.96,0.0003452,5]
[319605466,1710885189533,-500.0,0.0003452,5]
[319605467,1710885189544,-599.79,0.0003452,5]
[319605468,1710885189553,-1902.54,0.0003452,5]
[319605469,1710885189564,-673.97,0.0003452,5]
[319605470,1710885189573,-649.62,0.0003452,5]
[319605471,1710885189583,-26670.31,0.0003452,5]
[319605472,1710885189593,-5843.77,0.0003452,5]
[319605473,1710885189603,-691.9,0.0003452,5]
[319605474,1710885189612,-1109.32,0.0003452,5]
[319605475,1710885189621,-1828.95,0.0003452,5]
[319605476,1710885189630,-1199.84,0.0003452,5]
[319605477,1710885189639,-150.0,0.00034548,10]
[319605478,1710885189648,-1041.1,0.00034794,5]
[319605479,1710885189657,-905.92,0.00034794,5]
[319605480,1710885189666,-760.8,0.00034794,5]
[319605481,1710885189675,-500.0,0.00034794,5]
[319605482,1710885189685,-500.0,0.00034794,5]
[319605483,1710885189695,-918.16,0.00034794,5]
[319605484,1710885189703,-1354.5,0.00034794,5]
[319605485,1710885189713,-563.69,0.00034794,5]
[319605486,1710885189722,-553.29,0.00034794,5]
[319605487,1710885189731,-204.77987571,0.00034794,5]
[319605488,1710885189740,-576.34,0.00034794,5]
[319605489,1710885189748,-203.10607154,0.00034794,5]
[319605490,1710885189757,-563.62677678,0.00034794,5]
[319605491,1710885189765,-628.41,0.00034794,5]
[319605492,1710885189775,-500.0,0.00034794,5]
[319605493,1710885189784,-620.13,0.00034794,5]
[319605494,1710885189793,-786.01,0.00034794,5]
[319605495,1710885189802,-865.28,0.00034794,5]
[319605496,1710885189812,-964.89,0.00034794,5]
[319605497,1710885189821,-564.61,0.00034794,5]
[319605498,1710885189830,-500.0,0.00034794,5]
[319605499,1710885189839,-529.43,0.00034794,5]
[319605500,1710885189849,-618.58,0.00034794,5]
[319605501,1710885189858,-563.52,0.00034794,5]
[319605502,1710885189868,-2015.12,0.00034794,5]
[319605503,1710885189878,-631.9,0.00034794,5]
[319605504,1710885189887,-681.13,0.00034794,5]
[319605505,1710885189896,-1086.99,0.00034794,5]
[319605506,1710885189906,-500.0,0.00034794,5]
[319605507,1710885189915,-300.56401706,0.00034794,5]
[319605508,1710885189924,-652.31,0.00034794,5]
[319605509,1710885189933,-500.0,0.00034794,5]
[319605510,1710885189943,-1320.6,0.00034794,5]
[319605511,1710885189953,-1250.92,0.00034794,5]
[319605512,1710885189962,-1120.04,0.00034794,5]
[319605513,1710885189971,-500.0,0.00034794,5]
[319605514,1710885189980,-510.25,0.00034794,5]
[319605515,1710885189989,-921.3,0.00034794,5]
[319605516,1710885189998,-1041.72,0.00034794,5]
[319605517,1710885190008,-1043.25,0.00034794,5]
[319605518,1710885190017,-500.0,0.00034794,5]
[319605519,1710885190027,-535.44,0.00034794,5]
[319605520,1710885190037,-500.0,0.00034794,5]
[319605521,1710885190048,-500.0,0.00034794,5]
[319605522,1710885190057,-500.0,0.00034794,5]
[319605523,1710885190065,-957.02,0.00034794,5]
[319605524,1710885190074,-549.6,0.00034794,5]
[319605525,1710885190084,-383.18274578,0.00034794,5]
[319605526,1710885190093,-546.14,0.00034794,5]
[319605527,1710885190103,-983.01,0.00034794,5]
[319605528,1710885190112,-583.52,0.00034794,5]
[319605529,1710885190121,-502.25,0.00034794,5]
[319605530,1710885190129,-263.2413267,0.00034794,5]
[319605531,1710885190138,-701.32,0.00034794,5]
[319605532,1710885190147,-845.97,0.00034794,5]
[319605533,1710885190156,-604.6,0.00034794,5]
[319605534,1710885190165,-626.44,0.00034794,5]
[319605535,1710885190174,-500.0,0.00034794,5]
[319605536,1710885190183,-1296.65,0.00034794,5]
[319605537,1710885190193,-1134.53,0.00034794,5]
[319605538,1710885190203,-394.65720983,0.00034794,5]
[319605539,1710885190213,-507.2,0.00034794,5]
[319605540,1710885190223,-783.57,0.00034794,5]
[319605541,1710885190232,-1022.89,0.00034794,5]
[319605542,1710885190242,-668.88,0.00034794,5]
[319605543,1710885190251,-597.77,0.00034794,5]
[319605544,1710885190261,-500.0,0.00034794,5]
[319605545,1710885190271,-1578.12,0.00034794,5]
[319605546,1710885190280,-1317.95,0.00034794,5]
[319605547,1710885190290,-500.0,0.00034794,5]
[319605548,1710885190301,-706.81,0.00034794,5]
[319605549,1710885190311,-820.72,0.00034794,5]
[319605550,1710885190320,-500.0,0.00034794,5]
[319605551,1710885190330,-511.35,0.00034794,5]
[319605552,1710885190340,-1159.47,0.00034794,5]
[319605553,1710885190349,-752.64,0.00034794,5]
[319605554,1710885190358,-1433.6,0.00034794,5]
[319605555,1710885190369,-500.0,0.00034794,5]
[319605556,1710885190378,-500.0,0.00034794,5]
[319605557,1710885190388,-1189.27,0.00034794,5]
[319605558,1710885190398,-634.48518875,0.00034794,5]
[319605559,1710885190407,-500.0,0.00034794,5]
[319605560,1710885190417,-572.14,0.00034794,5]
[319605561,1710885190428,-1127.91,0.00034794,5]
[319605562,1710885190438,-729.46,0.00034794,5]
[319605563,1710885190448,-626.03027967,0.00034794,5]
[319605564,1710885190457,-500.0,0.00034794,5]
[319605565,1710885190467,-1199.62,0.00034794,5]
[319605566,1710885190477,-562.99,0.00034794,5]
[319605567,1710885190491,-786.3,0.00034794,5]
[319605568,1710885190502,-500.0,0.00034794,5]
[319605569,1710885190511,-1265.95,0.00034794,5]
[319605570,1710885190521,-580.29,0.00034794,5]
[319605571,1710885190531,-548.61983708,0.00034794,5]
[319605572,1710885190540,-500.0,0.00034794,5]
[319605573,1710885190550,-718.68,0.00034794,5]
[319605574,1710885190561,-2136.15,0.00034794,5]
[319605575,1710885190571,-928.05,0.00034794,5]
[319605576,1710885190579,-500.0,0.00034794,5]
[319605577,1710885190589,-783.9,0.00034794,5]
[319605578,1710885190598,-1320.02,0.00034794,5]
[319605579,1710885190607,-1043.02,0.00034794,5]
[319605580,1710885190616,-802.08,0.00034794,5]
[319605581,1710885190625,-1028.49,0.00034794,5]
[319605582,1710885190634,-1179.51,0.00034794,5]
[319605583,1710885190645,-812.3,0.00034794,5]
[319605584,1710885190654,-1146.04,0.00034794,5]
[319605585,1710885190663,-1045.71,0.00034794,5]
[319605586,1710885190674,-530.67,0.00034794,5]
[319605587,1710885190684,-649.64,0.00034794,5]
[319605588,1710885190693,-500.0,0.00034794,5]
[319605589,1710885190702,-500.0,0.00034794,5]
[319605590,1710885190712,-500.0,0.00034794,5]
[319605591,1710885190721,-775.28,0.00034794,5]
[319605592,1710885190731,-308.81260055,0.00034794,5]
[319605593,1710885190740,-897.58,0.00034794,5]
[319605594,1710885190750,-1675.73,0.00034794,5]
[319605595,1710885190759,-500.0,0.00034794,5]
[319605596,1710885190769,-500.0,0.00034794,5]
[319605597,1710885190779,-937.79,0.00034794,5]
[319605598,1710885190788,-734.15,0.00034794,5]
[319605599,1710885190798,-1431.93,0.00034794,5]
[319605600,1710885190808,-530.51,0.00034794,5]
[319605601,1710885190817,-1508.78,0.00034794,5]
[319605602,1710885190828,-500.0,0.00034794,5]
[319605603,1710885190838,-500.0,0.00034794,5]
[319605604,1710885190848,-3024.0,0.00034794,5]
[319605605,1710885190858,-571.47,0.00034794,5]
[319605606,1710885190868,-621.71,0.00034794,5]
[319605607,1710885190877,-762.86,0.00034794,5]
[319605608,1710885190887,-538.79,0.00034794,5]
[319605609,1710885190896,-985.89,0.00034794,5]
[319605610,1710885190906,-1947.91,0.00034794,5]
[319605611,1710885190915,-863.2,0.00034794,5]
[319605612,1710885190927,-538.79,0.00034794,5]
[319605613,1710885190937,-747.16,0.00034794,5]
[319605614,1710885190947,-500.0,0.00034794,5]
[319605615,1710885190957,-772.61,0.00034794,5]
[319605616,1710885190966,-1767.34,0.00034794,5]
[319605617,1710885190976,-500.0,0.00034794,5]
[319605618,1710885190986,-1603.73,0.00034794,5]
[319605619,1710885190994,-892.48,0.00034794,5]
[319605620,1710885191003,-654.11,0.00034794,5]
[319605621,1710885191013,-1478.75,0.00034794,5]
[319605622,1710885191022,-1208.68,0.00034794,5]
[319605623,1710885191031,-1477.07,0.00034794,5]
[319605624,1710885191040,-1428.4,0.00034794,5]
[319605625,1710885191048,-526.9,0.00034794,5]
[319605626,1710885191058,-2930.57,0.00034794,5]
[319605627,1710885191067,-1084.77,0.00034794,5]
[319605628,1710885191076,-948.83,0.00034794,5]
[319605629,1710885191085,-512.06591867,0.00034794,5]
[319605630,1710885191095,-1970.31,0.00034794,5]
[319605631,1710885191104,-748.56,0.00034794,5]
[319605632,1710885191113,-853.25,0.00034794,5]
[319605633,1710885191123,-1046.29,0.00034794,5]
[319605634,1710885191133,-608.95,0.00034794,5]
[319605635,1710885191142,-636.98,0.00034794,5]
[319605636,1710885191151,-1279.27,0.00034794,5]
[319605637,1710885191160,-1827.01,0.00034794,5]
[319605638,1710885191170,-500.0,0.00034794,5]
[319605639,1710885191179,-1006.11,0.00034794,5]
[319605640,1710885191189,-500.0,0.00034794,5]
[319605641,1710885191199,-1949.93,0.00034794,5]
[319605642,1710885191208,-1192.24,0.00034794,5]
[319605643,1710885191218,-2813.53,0.00034794,5]
[319605644,1710885191228,-845.98,0.00034794,5]
[319605645,1710885191237,-1011.35,0.00034794,5]
[319605646,1710885191250,-1701.68,0.00034794,5]
[319605647,1710885191262,-1413.56,0.00034794,5]
[319605648,1710885191272,-671.21,0.00034794,5]
[319605649,1710885191282,-856.2,0.00034794,5]
[319605650,1710885191291,-1896.31,0.00034794,5]
[319605651,1710885191301,-2782.61,0.00034794,5]
[319605652,1710885191311,-609.95,0.00034794,5]
[319605653,1710885191320,-1536.94,0.00034794,5]
[319605654,1710885191329,-2552.49,0.00034794,5]
[319605655,1710885191339,-2081.49,0.00034794,5]
[319605656,1710885191349,-1715.16,0.00034794,5]
[319605657,1710885191359,-1266.65,0.00034794,5]
[319605658,1710885191370,-1645.88,0.00034794,5]
[319605659,1710885191380,-500.0,0.00034794,5]
[319605660,1710885191390,-500.0,0.00034794,5]
[319605661,1710885191401,-500.0,0.00034794,5]
[319605662,1710885191411,-1784.06,0.00034794,5]
[319605663,1710885191420,-1425.44,0.00034794,5]
[319605664,1710885191431,-645.99,0.00034794,5]
[319605665,1710885191441,-856.99,0.00034794,5]
[319605666,1710885191451,-1509.6,0.00034794,5]
[319605667,1710885191460,-1899.37,0.00034794,5]
[319605668,1710885191470,-825.81,0.00034794,5]
[319605669,1710885191484,-500.0,0.00034794,5]
[319605670,1710885191493,-1668.46,0.00034794,5]
[319605671,1710885191503,-348.09456698,0.00034794,5]
[319605672,1710885191512,-1817.59,0.00034794,5]
[319605673,1710885191522,-612.56,0.00034794,5]
[319605674,1710885191532,-500.0,0.00034794,5]
[319605675,1710885191541,-641.85,0.00034794,5]
[319605676,1710885191551,-500.0,0.00034794,5]
[319605677,1710885191562,-1668.73,0.00034794,5]
[319605678,1710885191572,-3349.51,0.00034794,5]
[319605679,1710885191582,-2185.83,0.00034794,5]
[319605680,1710885191591,-603.12494536,0.00034794,5]
[319605681,1710885191600,-1047.88,0.00034794,5]
[319605682,1710885191609,-709.8,0.00034794,5]
[319605683,1710885191618,-3189.82,0.00034794,5]
[319605684,1710885191628,-2131.99,0.00034794,5]
[319605685,1710885191637,-315.1581013,0.00034794,5]
[319605686,1710885191646,-500.0,0.00034794,5]
[319605687,1710885191655,-2548.99,0.00034794,5]
[319605688,1710885191665,-1717.39,0.00034794,5]
[319605689,1710885191674,-500.0,0.00034794,5]
[319605690,1710885191684,-3499.12,0.00034794,5]
[319605691,1710885191693,-3366.11,0.00034794,5]
[319605692,1710885191703,-920.95,0.00034794,5]
[319605693,1710885191712,-1172.13,0.00034794,5]
[319605694,1710885191722,-762.14,0.00034794,5]
[319605695,1710885191730,-500.0,0.00034794,5]
[319605696,1710885191740,-500.0,0.00034794,5]
[319605697,1710885191749,-371.55628591,0.00034794,5]
[319605698,1710885191758,-651.81,0.00034794,5]
[319605699,1710885191767,-2755.73,0.00034794,5]
[319605700,1710885191776,-2171.26,0.00034794,5]
[319605701,1710885191785,-554.31,0.00034794,5]
[319605702,1710885191795,-913.38,0.00034794,5]
[319605703,1710885191804,-517.56,0.00034794,5]
[319605704,1710885191814,-622.91,0.00034794,5]
[319605705,1710885191822,-1265.69,0.00034794,5]
[319605706,1710885191832,-576.05,0.00034794,5]
[319605707,1710885191841,-2191.46,0.00034794,5]
[319605708,1710885191850,-1378.12,0.00034794,5]
[319605709,1710885191859,-500.0,0.00034794,5]
[319605710,1710885191868,-832.3,0.00034794,5]
[319605711,1710885191877,-3259.21,0.00034794,5]
[319605712,1710885191887,-516.5,0.00034794,5]
[319605713,1710885191896,-500.0,0.00034794,5]
[319605714,1710885191905,-500.0,0.00034794,5]
[319605715,1710885191914,-750.69,0.00034794,5]
[319605716,1710885191924,-6099.55,0.00034794,5]
[319605717,1710885191934,-500.0,0.00034794,5]
[319605718,1710885191943,-705.53,0.00034794,5]
[319605719,1710885191952,-510.82,0.00034794,5]
[319605720,1710885191961,-583.59,0.00034794,5]
[319605721,1710885191971,-554.14,0.00034794,5]
[319605722,1710885191980,-1769.12,0.00034794,5]
[319605723,1710885191990,-1054.91,0.00034794,5]
[319605724,1710885192000,-758.11,0.00034794,5]
[319605725,1710885192010,-500.0,0.00034794,5]
[319605726,1710885192020,-614.47,0.00034794,5]
[319605727,1710885192029,-500.0,0.00034794,5]
[319605728,1710885192038,-565.83,0.00034794,5]
[319605729,1710885192047,-3031.48,0.00034794,5]
[319605730,1710885192057,-1813.36,0.00034794,5]
[319605731,1710885192065,-1793.05,0.00034794,5]
[319605732,1710885192075,-1781.25,0.00034794,5]
[319605733,1710885192084,-5948.25,0.00034794,5]
[319605734,1710885192093,-721.19,0.00034794,5]
[319605735,1710885192102,-500.0,0.00034794,5]
[319605736,1710885192111,-2298.94,0.00034794,5]
[319605737,1710885192121,-1467.68,0.00034794,5]
[319605738,1710885192130,-2048.3,0.00034794,5]
[319605739,1710885192139,-740.6,0.00034794,5]
[319605740,1710885192148,-3725.64,0.00034794,5]
[319605741,1710885192157,-7446.28,0.00034794,5]
[319605742,1710885192166,-1176.01,0.00034794,5]
[319605743,1710885192177,-1639.61,0.00034794,5]
[319605744,1710885192186,-814.35,0.00034794,5]
[319605745,1710885192197,-1904.86,0.00034794,5]
[319605746,1710885192207,-531.89,0.00034794,5]
[319605747,1710885192216,-541.15,0.00034794,5]
[319605748,1710885192225,-505.23,0.00034794,5]
[319605749,1710885192235,-1726.69,0.00034794,5]
[319605750,1710885192244,-706.92,0.00034794,5]
[319605751,1710885192254,-1397.11,0.00034794,5]
[319605752,1710885192263,-644.74,0.00034794,5]
[319605753,1710885192272,-723.57,0.00034794,5]
[319605754,1710885192281,-2864.27,0.00034794,5]
[319605755,1710885192291,-2584.9,0.00034794,5]
[319605756,1710885192301,-500.0,0.00034794,5]
[319605757,1710885192310,-6961.76,0.00034794,5]
[319605758,1710885192320,-500.0,0.00034794,5]
[319605759,1710885192330,-1043.19,0.00034794,5]
[319605760,1710885192340,-915.89,0.00034794,5]
[319605761,1710885192349,-1045.63,0.00034794,5]
[319605762,1710885192359,-1312.85,0.00034794,5]
[319605763,1710885192369,-3736.86,0.00034794,5]
[319605764,1710885192379,-961.87,0.00034794,5]
[319605765,1710885192390,-1764.05,0.00034794,5]
[319605766,1710885192400,-838.02,0.00034794,5]
[319605767,1710885192410,-500.0,0.00034794,5]
[319605768,1710885192420,-1302.7,0.00034794,5]
[319605769,1710885192430,-2820.33,0.00034794,5]
[319605770,1710885192439,-500.0,0.00034794,5]
[319605771,1710885192448,-2171.52,0.00034794,5]
[319605772,1710885192458,-4792.93,0.00034794,5]
[319605773,1710885192468,-2181.61,0.00034794,5]
[319605774,1710885192479,-500.0,0.00034794,5]
[319605775,1710885192492,-1199.36,0.00034794,5]
[319605776,1710885192501,-501.95,0.00034794,5]
[319605777,1710885192511,-1621.75,0.00034794,5]
[319605778,1710885192521,-589.7,0.00034794,5]
[319605779,1710885192530,-855.86,0.00034794,5]
[319605780,1710885192540,-500.0,0.00034794,5]
[319605781,1710885192550,-3227.64,0.00034794,5]
[319605782,1710885192562,-863.41,0.00034794,5]
[319605783,1710885192571,-2111.52,0.00034794,5]
[319605784,1710885192580,-2950.43,0.00034794,5]
[319605785,1710885192590,-500.0,0.00034794,5]
[319605786,1710885192600,-5122.72,0.00034794,5]
[319605787,1710885192609,-824.14,0.00034794,5]
[319605788,1710885192618,-500.0,0.00034794,5]
[319605789,1710885192627,-10026.4,0.00034794,5]
[319605790,1710885192637,-500.0,0.00034794,5]
[319605791,1710885192647,-565.71,0.00034794,5]
[319605792,1710885192656,-1033.05,0.00034794,5]
[319605793,1710885192666,-2275.12,0.00034794,5]
[319605794,1710885192677,-504.07,0.00034794,5]
[319605795,1710885192686,-500.0,0.00034794,5]
[319605796,1710885192695,-126732.2,0.00034794,5]
[319605797,1710885192705,-4852.56,0.00034794,5]
[319605798,1710885192715,-2937.74,0.00034794,5]
[319605799,1710885192725,-1976.68,0.00034794,5]
[319605800,1710885192735,-777.71,0.00034794,5]
[319605801,1710885192745,-1133.54,0.00034794,5]
[319605802,1710885192754,-2119.46,0.00034794,5]
[319605803,1710885192763,-500.0,0.00034794,5]
[319605804,1710885192772,-7711.4,0.00034794,5]
[319605805,1710885192782,-524.36,0.00034794,5]
[319605806,1710885192791,-7310.51,0.00034794,5]
[319605807,1710885192801,-500.0,0.00034794,5]
[319605808,1710885192810,-14442.37,0.00034794,5]
[319605809,1710885192819,-500.0,0.00034794,5]
[319605810,1710885192828,-500.0,0.00034794,5]
[319605811,1710885192837,-5376.56,0.00034794,5]
[319605812,1710885192847,-582.24,0.00034794,5]
[319605813,1710885192856,-4230.03,0.00034794,5]
[319605814,1710885192865,-751.89,0.00034794,5]
[319605815,1710885192874,-542.91,0.00034794,5]
[319605816,1710885192884,-1949.45,0.00034794,5]
[319605817,1710885192893,-5623.75,0.00034794,5]